[Event "Titled Tuesday Blitz March 07 Early 2023"]
[White "Oro, Faustino"]
[Black "Zacurdajev, Dmitry"]
[WhiteFideId "20000197"]
[BlackFideId "4196309"]
[WhiteElo "1984"]
[BlackElo "2179"]
[Result "0-1"]
[Round "07"]
[TimeControl "180+2"]
[Date "2023.03.07"]
[WhiteClock "0:00:02"]
[BlackClock "0:00:03"]

1. e4 {[%clk 0:03:00]}  c6 {[%clk 0:02:59]} 2. d4 {[%clk 0:03:00]}  d5 {[%clk 0:03:00]} 3. e5 {[%clk 0:03:01]}  c5 {[%clk 0:03:00]} 4. dxc5 {[%clk 0:03:01]}  Nc6 {[%clk 0:03:00]} 5. f4 {[%clk 0:03:00]}  e6 {[%clk 0:03:00]} 6. Be3 {[%clk 0:02:59]}  d4 {[%clk 0:03:01]} 7. Bf2 {[%clk 0:02:59]}  Bxc5 {[%clk 0:03:02]} 8. Nf3 {[%clk 0:03:00]}  Nge7 {[%clk 0:03:00]} 9. Nbd2 {[%clk 0:03:00]}  Nd5 {[%clk 0:02:57]} 10. a3 {[%clk 0:02:22]}  Nxf4 {[%clk 0:02:50]} 11. Ne4 {[%clk 0:02:22]}  Qa5+ {[%clk 0:02:10]} 12. b4 {[%clk 0:01:56]}  Nxb4 {[%clk 0:02:10]} 13. axb4 {[%clk 0:01:55]}  Bxb4+ {[%clk 0:02:11]} 14. Nfd2 {[%clk 0:01:56]}  Bxd2+ {[%clk 0:02:11]} 15. Nxd2 {[%clk 0:01:55]}  Qxe5+ {[%clk 0:02:11]} 16. Be2 {[%clk 0:01:51]}  Nxg2+ {[%clk 0:02:07]} 17. Kf1 {[%clk 0:01:51]}  Ne3+ {[%clk 0:02:06]} 18. Bxe3 {[%clk 0:01:51]}  dxe3 {[%clk 0:02:05]} 19. Nf3 {[%clk 0:01:48]}  Qf5 {[%clk 0:01:55]} 20. Qd6 {[%clk 0:01:37]}  Bd7 {[%clk 0:01:46]} 21. Rg1 {[%clk 0:00:54]}  Bc6 {[%clk 0:01:28]} 22. Rg5 {[%clk 0:00:28]}  Qh3+ {[%clk 0:00:36]} 23. Ke1 {[%clk 0:00:24]}  Rd8 {[%clk 0:00:34]} 24. Qf4 {[%clk 0:00:22]}  Bxf3 {[%clk 0:00:12]} 25. Bxf3 {[%clk 0:00:15]}  O-O {[%clk 0:00:10]} 26. Rg3 {[%clk 0:00:09]}  Qf5 {[%clk 0:00:07]} 27. Qxe3 {[%clk 0:00:09]}  Qxc2 {[%clk 0:00:06]} 28. Rg2 {[%clk 0:00:07]}  Qc4 {[%clk 0:00:04]} 29. Rc1 {[%clk 0:00:06]}  Qb4+ {[%clk 0:00:04]} 30. Kf1 {[%clk 0:00:06]}  g6 {[%clk 0:00:05]} 31. Kg1 {[%clk 0:00:04]}  Rc8 {[%clk 0:00:05]} 32. Re1 {[%clk 0:00:04]}  Rc3 {[%clk 0:00:04]} 33. Qe2 {[%clk 0:00:04]}  Qc5+ {[%clk 0:00:05]} 34. Kh1 {[%clk 0:00:05]}  Rc8 {[%clk 0:00:05]} 35. Be4 {[%clk 0:00:05]}  Rc1 {[%clk 0:00:05]} 36. Rgg1 {[%clk 0:00:06]}  Rxe1 {[%clk 0:00:04]} 37. Rxe1 {[%clk 0:00:06]}  b5 {[%clk 0:00:05]} 38. Bb7 {[%clk 0:00:06]}  Rb8 {[%clk 0:00:04]} 39. Bg2 {[%clk 0:00:06]}  b4 {[%clk 0:00:04]} 40. Qd2 {[%clk 0:00:07]}  b3 {[%clk 0:00:04]} 41. Rc1 {[%clk 0:00:07]}  Qb6 {[%clk 0:00:02]} 42. Qc3 {[%clk 0:00:07]}  b2 {[%clk 0:00:02]} 43. Rb1 {[%clk 0:00:08]}  a5 {[%clk 0:00:03]} 44. Qc2 {[%clk 0:00:07]}  Qb4 {[%clk 0:00:02]} 45. Qf2 {[%clk 0:00:05]}  a4 {[%clk 0:00:02]} 46. Qa7 {[%clk 0:00:05]}  a3 {[%clk 0:00:02]} 47. Kg1 {[%clk 0:00:05]}  Qb3 {[%clk 0:00:03]} 48. Rf1 {[%clk 0:00:03]}  e5 {[%clk 0:00:02]} 49. Kh1 {[%clk 0:00:02]}  b1=Q {[%clk 0:00:02]} 50. Qc7 {[%clk 0:00:01]}  Qxf1+ {[%clk 0:00:02]} 51. Bxf1 {[%clk 0:00:02]}  Qb7+ {[%clk 0:00:03]} 52. Qxb7 {[%clk 0:00:02]}  Rxb7 {[%clk 0:00:03]} 0-1


[Site "https://www.chess.com"]

[Event "Titled Tuesday Blitz March 07 Early 2023"]
[White "Fiorito, Francisco"]
[Black "Nur-Mukhametova, Alisa"]
[WhiteFideId "180165"]
[BlackFideId "54117739"]
[WhiteElo "2341"]
[BlackElo "1903"]
[Result "1-0"]
[Round "07"]
[TimeControl "180+2"]
[Date "2023.03.07"]
[WhiteClock "0:00:11"]
[BlackClock "0:00:02"]

1. e4 {[%clk 0:03:00]}  c5 {[%clk 0:02:58]} 2. d3 {[%clk 0:03:00]}  Nf6 {[%clk 0:02:54]} 3. g3 {[%clk 0:03:00]}  d5 {[%clk 0:02:53]} 4. Nd2 {[%clk 0:02:57]}  Nc6 {[%clk 0:02:51]} 5. Bg2 {[%clk 0:02:57]}  g6 {[%clk 0:02:49]} 6. Ngf3 {[%clk 0:02:56]}  Bg7 {[%clk 0:02:49]} 7. O-O {[%clk 0:02:57]}  O-O {[%clk 0:02:49]} 8. Re1 {[%clk 0:02:57]}  e5 {[%clk 0:02:48]} 9. exd5 {[%clk 0:02:56]}  Nxd5 {[%clk 0:02:47]} 10. Nc4 {[%clk 0:02:56]}  Re8 {[%clk 0:02:47]} 11. a4 {[%clk 0:02:55]}  Ndb4 {[%clk 0:02:45]} 12. a5 {[%clk 0:02:45]}  Rb8 {[%clk 0:02:31]} 13. Be3 {[%clk 0:02:43]}  b6 {[%clk 0:02:21]} 14. axb6 {[%clk 0:02:43]}  axb6 {[%clk 0:02:21]} 15. Ng5 {[%clk 0:02:32]}  f5 {[%clk 0:02:13]} 16. c3 {[%clk 0:02:28]}  Nd5 {[%clk 0:02:12]} 17. Qb3 {[%clk 0:02:27]}  Nce7 {[%clk 0:01:20]} 18. Ra7 {[%clk 0:02:21]}  h6 {[%clk 0:01:05]} 19. Nf3 {[%clk 0:01:56]}  Nc6 {[%clk 0:01:01]} 20. Raa1 {[%clk 0:01:44]}  Be6 {[%clk 0:00:56]} 21. Qb5 {[%clk 0:01:42]}  Bd7 {[%clk 0:00:42]} 22. Nfxe5 {[%clk 0:01:07]}  Nxe5 {[%clk 0:00:42]} 23. Bxd5+ {[%clk 0:01:07]}  Kh7 {[%clk 0:00:43]} 24. Qb3 {[%clk 0:01:02]}  Nxd3 {[%clk 0:00:42]} 25. Red1 {[%clk 0:01:01]}  b5 {[%clk 0:00:33]} 26. Rxd3 {[%clk 0:00:59]}  bxc4 {[%clk 0:00:33]} 27. Qxc4 {[%clk 0:00:45]}  Bb5 {[%clk 0:00:32]} 28. Qxc5 {[%clk 0:00:12]}  Bxd3 {[%clk 0:00:30]} 29. Ra7 {[%clk 0:00:12]}  Rc8 {[%clk 0:00:19]} 30. Qd4 {[%clk 0:00:07]}  Re7 {[%clk 0:00:10]} 31. Rxe7 {[%clk 0:00:07]}  Qxe7 {[%clk 0:00:11]} 32. Qxd3 {[%clk 0:00:08]}  Rd8 {[%clk 0:00:09]} 33. c4 {[%clk 0:00:05]}  Bxb2 {[%clk 0:00:08]} 34. h4 {[%clk 0:00:06]}  Bg7 {[%clk 0:00:08]} 35. h5 {[%clk 0:00:06]}  Qe5 {[%clk 0:00:07]} 36. hxg6+ {[%clk 0:00:06]}  Kh8 {[%clk 0:00:06]} 37. Bf4 {[%clk 0:00:06]}  Qa1+ {[%clk 0:00:05]} 38. Kg2 {[%clk 0:00:07]}  Qf6 {[%clk 0:00:06]} 39. Qf3 {[%clk 0:00:08]}  Qxg6 {[%clk 0:00:06]} 40. c5 {[%clk 0:00:08]}  Qf6 {[%clk 0:00:05]} 41. c6 {[%clk 0:00:08]}  Qd4 {[%clk 0:00:05]} 42. c7 {[%clk 0:00:09]}  Rc8 {[%clk 0:00:04]} 43. Be6 {[%clk 0:00:09]}  Rxc7 {[%clk 0:00:04]} 44. Bxc7 {[%clk 0:00:10]}  Qc5 {[%clk 0:00:03]} 45. Qa8+ {[%clk 0:00:10]}  Kh7 {[%clk 0:00:02]} 46. Qg8+ {[%clk 0:00:10]}  Kg6 {[%clk 0:00:02]} 47. Qf7+ {[%clk 0:00:11]}  Kh7 {[%clk 0:00:02]} 48. Bxf5+ {[%clk 0:00:11]} 1-0


[Site "https://www.chess.com"]

[Event "Titled Tuesday Blitz March 07 Early 2023"]
[White "Kislov, Oleg"]
[Black "Tymrakiewicz, Rafal"]
[WhiteFideId "13503774"]
[BlackFideId "1108832"]
[WhiteElo "2186"]
[BlackElo "2151"]
[Result "0-1"]
[Round "07"]
[TimeControl "180+2"]
[Date "2023.03.07"]
[WhiteClock "0:00:15"]
[BlackClock "0:00:58"]

1. e4 {[%clk 0:03:00]}  Nf6 {[%clk 0:02:59]} 2. e5 {[%clk 0:03:00]}  Nd5 {[%clk 0:02:59]} 3. d4 {[%clk 0:03:00]}  d6 {[%clk 0:02:59]} 4. c4 {[%clk 0:03:00]}  Nb6 {[%clk 0:02:59]} 5. exd6 {[%clk 0:03:01]}  cxd6 {[%clk 0:03:00]} 6. Nf3 {[%clk 0:03:00]}  g6 {[%clk 0:03:01]} 7. Nc3 {[%clk 0:02:59]}  Bg7 {[%clk 0:03:01]} 8. Be3 {[%clk 0:02:58]}  O-O {[%clk 0:02:59]} 9. Rc1 {[%clk 0:02:58]}  Bg4 {[%clk 0:02:57]} 10. b3 {[%clk 0:02:57]}  d5 {[%clk 0:02:49]} 11. c5 {[%clk 0:02:54]}  Nc8 {[%clk 0:02:50]} 12. Be2 {[%clk 0:02:43]}  Nc6 {[%clk 0:02:50]} 13. h3 {[%clk 0:02:42]}  Bxf3 {[%clk 0:02:49]} 14. Bxf3 {[%clk 0:02:43]}  e6 {[%clk 0:02:50]} 15. O-O {[%clk 0:02:36]}  N8e7 {[%clk 0:02:50]} 16. g4 {[%clk 0:02:30]}  f5 {[%clk 0:02:49]} 17. Ne2 {[%clk 0:02:21]}  fxg4 {[%clk 0:02:45]} 18. Bxg4 {[%clk 0:02:20]}  Nf5 {[%clk 0:02:46]} 19. Qd3 {[%clk 0:02:13]}  Qh4 {[%clk 0:02:40]} 20. Qd2 {[%clk 0:01:56]}  h6 {[%clk 0:01:52]} 21. Kg2 {[%clk 0:01:49]}  Kh7 {[%clk 0:01:50]} 22. b4 {[%clk 0:01:36]}  e5 {[%clk 0:01:41]} 23. dxe5 {[%clk 0:01:09]}  Nxe5 {[%clk 0:01:40]} 24. Qxd5 {[%clk 0:00:58]}  Nxg4 {[%clk 0:01:34]} 25. hxg4 {[%clk 0:00:58]}  Qxg4+ {[%clk 0:01:32]} 26. Ng3 {[%clk 0:00:58]}  Qxg3+ {[%clk 0:01:31]} 27. Kh1 {[%clk 0:00:41]}  Qh3+ {[%clk 0:01:27]} 28. Kg1 {[%clk 0:00:41]}  Nh4 {[%clk 0:01:15]} 29. f4 {[%clk 0:00:21]}  Qxe3+ {[%clk 0:01:14]} 30. Kh2 {[%clk 0:00:20]}  Rad8 {[%clk 0:01:05]} 31. Qxb7 {[%clk 0:00:15]}  Rd2+ {[%clk 0:01:04]} 32. Kh1 {[%clk 0:00:15]}  Qh3+ {[%clk 0:00:58]} 33. Kg1 {[%clk 0:00:15]}  Qh2# {[%clk 0:00:58]} 0-1


[Site "https://www.chess.com"]

[Event "Titled Tuesday Blitz March 07 Early 2023"]
[White "Sztokbant, Bernardo Vainzoff"]
[Black "Bogaudinov, Rushan"]
[WhiteFideId "2115956"]
[BlackFideId "4129288"]
[WhiteElo "2222"]
[BlackElo "1949"]
[Result "0-1"]
[Round "07"]
[TimeControl "180+2"]
[Date "2023.03.07"]
[WhiteClock "0:00:30"]
[BlackClock "0:00:09"]

1. d4 {[%clk 0:03:00]}  d5 {[%clk 0:02:59]} 2. c4 {[%clk 0:02:59]}  dxc4 {[%clk 0:02:59]} 3. e4 {[%clk 0:02:59]}  e6 {[%clk 0:02:56]} 4. Bxc4 {[%clk 0:02:56]}  Nf6 {[%clk 0:02:56]} 5. Nc3 {[%clk 0:02:55]}  Be7 {[%clk 0:02:56]} 6. Nf3 {[%clk 0:02:55]}  O-O {[%clk 0:02:55]} 7. O-O {[%clk 0:02:55]}  a6 {[%clk 0:02:55]} 8. e5 {[%clk 0:02:55]}  Nd5 {[%clk 0:02:53]} 9. Bd3 {[%clk 0:02:54]}  c5 {[%clk 0:02:46]} 10. dxc5 {[%clk 0:02:50]}  Nc6 {[%clk 0:02:41]} 11. Qe2 {[%clk 0:02:47]}  Nxc3 {[%clk 0:02:31]} 12. bxc3 {[%clk 0:02:48]}  Qd5 {[%clk 0:02:21]} 13. Ba3 {[%clk 0:02:26]}  Qd7 {[%clk 0:01:27]} 14. Rad1 {[%clk 0:02:22]}  Qc7 {[%clk 0:01:27]} 15. Qe4 {[%clk 0:02:17]}  g6 {[%clk 0:01:27]} 16. h4 {[%clk 0:02:13]}  Bd7 {[%clk 0:01:18]} 17. h5 {[%clk 0:02:13]}  Rfd8 {[%clk 0:01:17]} 18. Qf4 {[%clk 0:02:06]}  Be8 {[%clk 0:01:05]} 19. Rfe1 {[%clk 0:01:34]}  Rd7 {[%clk 0:01:02]} 20. Nd4 {[%clk 0:01:22]}  Rad8 {[%clk 0:00:50]} 21. Bc4 {[%clk 0:01:09]}  Nxd4 {[%clk 0:00:40]} 22. cxd4 {[%clk 0:01:09]}  b6 {[%clk 0:00:38]} 23. Bxa6 {[%clk 0:00:57]}  bxc5 {[%clk 0:00:36]} 24. Bb5 {[%clk 0:00:56]}  Rxd4 {[%clk 0:00:34]} 25. Rxd4 {[%clk 0:00:56]}  Rxd4 {[%clk 0:00:33]} 26. Qf3 {[%clk 0:00:44]}  Bxb5 {[%clk 0:00:31]} 27. Bb2 {[%clk 0:00:40]}  Rd5 {[%clk 0:00:24]} 28. h6 {[%clk 0:00:36]}  c4 {[%clk 0:00:22]} 29. Bc3 {[%clk 0:00:37]}  Qd7 {[%clk 0:00:18]} 30. Rb1 {[%clk 0:00:32]}  Bf8 {[%clk 0:00:17]} 31. a4 {[%clk 0:00:29]}  Bc6 {[%clk 0:00:12]} 32. Rb8 {[%clk 0:00:30]}  Rd1+ {[%clk 0:00:12]} 33. Kh2 {[%clk 0:00:30]}  Bxf3 {[%clk 0:00:09]} 34. Bb4 {[%clk 0:00:30]}  Qd8 {[%clk 0:00:09]} 35. Rxd8 {[%clk 0:00:29]}  Rxd8 {[%clk 0:00:09]} 36. Bxf8 {[%clk 0:00:30]}  Kxf8 {[%clk 0:00:09]} 37. gxf3 {[%clk 0:00:30]}  c3 {[%clk 0:00:09]} 0-1


[Site "https://www.chess.com"]

[Event "Titled Tuesday Blitz March 07 Early 2023"]
[White "Womacka, Mathias"]
[Black "Galchenko, Matvey"]
[WhiteFideId "4611390"]
[BlackFideId "24175480"]
[WhiteElo "2377"]
[BlackElo "2404"]
[Result "0-1"]
[Round "07"]
[TimeControl "180+2"]
[Date "2023.03.07"]
[WhiteClock "0:00:04"]
[BlackClock "0:00:05"]

1. e4 {[%clk 0:03:00]}  e6 {[%clk 0:02:29]} 2. d4 {[%clk 0:02:59]}  d5 {[%clk 0:02:30]} 3. Nd2 {[%clk 0:02:59]}  a6 {[%clk 0:02:22]} 4. Ngf3 {[%clk 0:02:54]}  Nf6 {[%clk 0:02:17]} 5. e5 {[%clk 0:02:45]}  Nfd7 {[%clk 0:02:04]} 6. Bd3 {[%clk 0:02:45]}  c5 {[%clk 0:02:03]} 7. c3 {[%clk 0:02:45]}  Nc6 {[%clk 0:02:04]} 8. O-O {[%clk 0:02:45]}  g5 {[%clk 0:01:52]} 9. dxc5 {[%clk 0:02:27]}  g4 {[%clk 0:01:42]} 10. Nd4 {[%clk 0:02:26]}  Ndxe5 {[%clk 0:01:43]} 11. N2b3 {[%clk 0:02:21]}  Nxd3 {[%clk 0:01:32]} 12. Qxd3 {[%clk 0:02:20]}  e5 {[%clk 0:01:31]} 13. Nxc6 {[%clk 0:02:02]}  bxc6 {[%clk 0:01:31]} 14. f4 {[%clk 0:01:56]}  a5 {[%clk 0:01:05]} 15. Qg3 {[%clk 0:01:12]}  a4 {[%clk 0:01:03]} 16. Nd2 {[%clk 0:01:09]}  e4 {[%clk 0:00:59]} 17. b4 {[%clk 0:01:05]}  axb3 {[%clk 0:00:42]} 18. Nxb3 {[%clk 0:01:05]}  Ba6 {[%clk 0:00:43]} 19. Re1 {[%clk 0:01:02]}  Bc4 {[%clk 0:00:43]} 20. Be3 {[%clk 0:01:00]}  h5 {[%clk 0:00:41]} 21. Bd4 {[%clk 0:00:57]}  Rg8 {[%clk 0:00:39]} 22. Nd2 {[%clk 0:00:47]}  Bxa2 {[%clk 0:00:23]} 23. f5 {[%clk 0:00:36]}  Be7 {[%clk 0:00:18]} 24. Qe5 {[%clk 0:00:28]}  Rg5 {[%clk 0:00:09]} 25. Qf4 {[%clk 0:00:20]}  f6 {[%clk 0:00:09]} 26. Nf1 {[%clk 0:00:17]}  Kf7 {[%clk 0:00:08]} 27. Ne3 {[%clk 0:00:17]}  Bf8 {[%clk 0:00:07]} 28. Qf2 {[%clk 0:00:14]}  Bb3 {[%clk 0:00:07]} 29. Rxa8 {[%clk 0:00:13]}  Qxa8 {[%clk 0:00:08]} 30. Rb1 {[%clk 0:00:13]}  Ba4 {[%clk 0:00:05]} 31. Ra1 {[%clk 0:00:12]}  h4 {[%clk 0:00:03]} 32. Qa2 {[%clk 0:00:12]}  Qb7 {[%clk 0:00:03]} 33. Qxa4 {[%clk 0:00:11]}  Kg8 {[%clk 0:00:03]} 34. Qa7 {[%clk 0:00:11]}  Qb2 {[%clk 0:00:03]} 35. Bxf6 {[%clk 0:00:09]}  Bxc5 {[%clk 0:00:03]} 36. Bxg5 {[%clk 0:00:08]}  Bxa7 {[%clk 0:00:04]} 37. Rf1 {[%clk 0:00:04]}  Qxc3 {[%clk 0:00:03]} 38. f6 {[%clk 0:00:04]}  Bxe3+ {[%clk 0:00:03]} 39. Bxe3 {[%clk 0:00:03]}  Qxe3+ {[%clk 0:00:04]} 40. Kh1 {[%clk 0:00:04]}  Kf7 {[%clk 0:00:05]} 0-1


[Site "https://www.chess.com"]

[Event "Titled Tuesday Blitz March 07 Early 2023"]
[White "Omariev, Maksim"]
[Black "Orlov, Georgi"]
[WhiteFideId "4193423"]
[BlackFideId "2011271"]
[WhiteElo "2471"]
[BlackElo "2636"]
[Result "1-0"]
[Round "07"]
[TimeControl "180+2"]
[Date "2023.03.07"]
[WhiteClock "0:00:02"]
[BlackClock "0:00:31"]

1. e4 {[%clk 0:03:00]}  c5 {[%clk 0:02:58]} 2. Nf3 {[%clk 0:03:01]}  e6 {[%clk 0:02:58]} 3. d4 {[%clk 0:03:01]}  cxd4 {[%clk 0:02:59]} 4. Nxd4 {[%clk 0:03:02]}  Qb6 {[%clk 0:02:59]} 5. Nb3 {[%clk 0:02:55]}  Nc6 {[%clk 0:02:59]} 6. c4 {[%clk 0:02:49]}  Nf6 {[%clk 0:02:57]} 7. Bd3 {[%clk 0:02:42]}  Ne5 {[%clk 0:02:40]} 8. O-O {[%clk 0:02:30]}  d6 {[%clk 0:02:38]} 9. Nc3 {[%clk 0:02:16]}  a6 {[%clk 0:02:38]} 10. Be2 {[%clk 0:02:04]}  Qc7 {[%clk 0:02:36]} 11. Bf4 {[%clk 0:01:54]}  Nxc4 {[%clk 0:02:30]} 12. Bxc4 {[%clk 0:01:25]}  Qxc4 {[%clk 0:02:29]} 13. Rc1 {[%clk 0:01:25]}  Nxe4 {[%clk 0:02:03]} 14. Nxe4 {[%clk 0:00:57]}  Qxe4 {[%clk 0:02:02]} 15. Bxd6 {[%clk 0:00:58]}  Qd5 {[%clk 0:01:36]} 16. Bxf8 {[%clk 0:00:20]}  Rxf8 {[%clk 0:01:16]} 17. Qg4 {[%clk 0:00:14]}  e5 {[%clk 0:00:54]} 18. Qxg7 {[%clk 0:00:12]}  Be6 {[%clk 0:00:52]} 19. Rfd1 {[%clk 0:00:12]}  Qb5 {[%clk 0:00:46]} 20. Nc5 {[%clk 0:00:09]}  Rc8 {[%clk 0:00:32]} 21. Nxe6 {[%clk 0:00:04]}  fxe6 {[%clk 0:00:31]} 22. Rxc8# {[%clk 0:00:02]} 1-0


[Site "https://www.chess.com"]

[Event "Titled Tuesday Blitz March 07 Early 2023"]
[White "Hernandez Sanchez, Elvis De La Caridad"]
[Black "Jakubowski, Krzysztof"]
[WhiteFideId "6400353"]
[BlackFideId "1112848"]
[WhiteElo "2465"]
[BlackElo "2359"]
[Result "1/2-1/2"]
[Round "07"]
[TimeControl "180+2"]
[Date "2023.03.07"]
[WhiteClock "0:00:05"]
[BlackClock "0:00:05"]

1. e4 {[%clk 0:03:00]}  c5 {[%clk 0:02:56]} 2. Nf3 {[%clk 0:03:00]}  e6 {[%clk 0:02:56]} 3. c3 {[%clk 0:02:59]}  Nf6 {[%clk 0:02:55]} 4. e5 {[%clk 0:02:54]}  Nd5 {[%clk 0:02:55]} 5. d4 {[%clk 0:02:50]}  cxd4 {[%clk 0:02:55]} 6. cxd4 {[%clk 0:02:51]}  d6 {[%clk 0:02:55]} 7. exd6 {[%clk 0:02:50]}  Bxd6 {[%clk 0:02:53]} 8. Nc3 {[%clk 0:02:50]}  Nxc3 {[%clk 0:02:51]} 9. bxc3 {[%clk 0:02:51]}  Qc7 {[%clk 0:02:49]} 10. Bd2 {[%clk 0:02:48]}  Nd7 {[%clk 0:02:46]} 11. Bd3 {[%clk 0:02:46]}  b6 {[%clk 0:02:38]} 12. Ng5 {[%clk 0:02:35]}  Nf6 {[%clk 0:02:29]} 13. Ne4 {[%clk 0:02:32]}  Nxe4 {[%clk 0:02:18]} 14. Bxe4 {[%clk 0:02:33]}  Bb7 {[%clk 0:02:17]} 15. Qf3 {[%clk 0:02:22]}  Bxe4 {[%clk 0:02:15]} 16. Qxe4 {[%clk 0:02:23]}  Rc8 {[%clk 0:02:10]} 17. O-O {[%clk 0:02:21]}  O-O {[%clk 0:01:59]} 18. h4 {[%clk 0:02:17]}  Qc4 {[%clk 0:01:49]} 19. h5 {[%clk 0:02:14]}  Qd5 {[%clk 0:01:45]} 20. Qg4 {[%clk 0:02:05]}  Qf5 {[%clk 0:01:35]} 21. Qxf5 {[%clk 0:02:02]}  exf5 {[%clk 0:01:36]} 22. h6 {[%clk 0:02:03]}  g6 {[%clk 0:01:35]} 23. a4 {[%clk 0:01:58]}  Rfe8 {[%clk 0:01:26]} 24. Rfe1 {[%clk 0:01:57]}  Kf8 {[%clk 0:01:25]} 25. Kf1 {[%clk 0:01:47]}  Re6 {[%clk 0:01:21]} 26. a5 {[%clk 0:01:24]}  b5 {[%clk 0:01:17]} 27. a6 {[%clk 0:01:22]}  Rxe1+ {[%clk 0:01:12]} 28. Rxe1 {[%clk 0:01:23]}  Rc6 {[%clk 0:01:10]} 29. Bg5 {[%clk 0:01:13]}  Ba3 {[%clk 0:00:50]} 30. Rb1 {[%clk 0:00:33]}  f6 {[%clk 0:00:45]} 31. Be3 {[%clk 0:00:31]}  b4 {[%clk 0:00:35]} 32. cxb4 {[%clk 0:00:28]}  Rd6 {[%clk 0:00:14]} 33. Rb3 {[%clk 0:00:25]}  Rxa6 {[%clk 0:00:12]} 34. d5 {[%clk 0:00:26]}  Ke7 {[%clk 0:00:11]} 35. Bc5+ {[%clk 0:00:25]}  Kd7 {[%clk 0:00:11]} 36. Rd3 {[%clk 0:00:25]}  Ra4 {[%clk 0:00:10]} 37. Rb3 {[%clk 0:00:23]}  a5 {[%clk 0:00:09]} 38. Re3 {[%clk 0:00:19]}  Bxb4 {[%clk 0:00:08]} 39. Re7+ {[%clk 0:00:19]}  Kc8 {[%clk 0:00:05]} 40. Re8+ {[%clk 0:00:13]}  Kd7 {[%clk 0:00:05]} 41. Re7+ {[%clk 0:00:14]}  Kc8 {[%clk 0:00:05]} 42. d6 {[%clk 0:00:10]}  Bxc5 {[%clk 0:00:04]} 43. Rc7+ {[%clk 0:00:10]}  Kd8 {[%clk 0:00:04]} 44. Rxc5 {[%clk 0:00:11]}  Rh4 {[%clk 0:00:04]} 45. Rxa5 {[%clk 0:00:10]}  Rxh6 {[%clk 0:00:03]} 46. Ra7 {[%clk 0:00:10]}  Rh1+ {[%clk 0:00:03]} 47. Ke2 {[%clk 0:00:10]}  f4 {[%clk 0:00:04]} 48. Kf3 {[%clk 0:00:10]}  g5 {[%clk 0:00:03]} 49. Kg4 {[%clk 0:00:10]}  Rd1 {[%clk 0:00:03]} 50. Rxh7 {[%clk 0:00:03]}  Rxd6 {[%clk 0:00:03]} 51. Kf5 {[%clk 0:00:04]}  Ke8 {[%clk 0:00:03]} 52. g3 {[%clk 0:00:04]}  Kf8 {[%clk 0:00:03]} 53. gxf4 {[%clk 0:00:04]}  gxf4 {[%clk 0:00:04]} 54. Kxf4 {[%clk 0:00:03]}  Kg8 {[%clk 0:00:04]} 55. Ra7 {[%clk 0:00:03]}  Rd5 {[%clk 0:00:04]} 56. f3 {[%clk 0:00:02]}  Rb5 {[%clk 0:00:04]} 57. Kg3 {[%clk 0:00:02]}  Kf8 {[%clk 0:00:04]} 58. Rc7 {[%clk 0:00:03]}  Ke8 {[%clk 0:00:04]} 59. Ra7 {[%clk 0:00:04]}  Kf8 {[%clk 0:00:04]} 60. Rh7 {[%clk 0:00:04]}  Kg8 {[%clk 0:00:04]} 61. Ra7 {[%clk 0:00:05]}  Kf8 {[%clk 0:00:05]} 1/2-1/2


[Site "https://www.chess.com"]

[Event "Titled Tuesday Blitz March 07 Early 2023"]
[White "Bews, Steven"]
[Black "Bozorov, Makhsum"]
[WhiteFideId "2400529"]
[BlackFideId "14201330"]
[WhiteElo "2590"]
[BlackElo "2464"]
[Result "1/2-1/2"]
[Round "07"]
[TimeControl "180+2"]
[Date "2023.03.07"]
[WhiteClock "0:02:09"]
[BlackClock "0:02:14"]

1. e4 {[%clk 0:03:00]}  c5 {[%clk 0:02:57]} 2. Nf3 {[%clk 0:02:59]}  d6 {[%clk 0:02:58]} 3. d4 {[%clk 0:03:00]}  cxd4 {[%clk 0:02:59]} 4. Nxd4 {[%clk 0:03:00]}  Nf6 {[%clk 0:02:59]} 5. Nc3 {[%clk 0:03:00]}  a6 {[%clk 0:03:00]} 6. Bg5 {[%clk 0:03:00]}  e6 {[%clk 0:03:00]} 7. f4 {[%clk 0:03:00]}  Be7 {[%clk 0:03:00]} 8. Qf3 {[%clk 0:03:01]}  Qc7 {[%clk 0:03:00]} 9. O-O-O {[%clk 0:03:00]}  Nbd7 {[%clk 0:03:01]} 10. Bd3 {[%clk 0:03:01]}  h6 {[%clk 0:02:56]} 11. Bh4 {[%clk 0:02:58]}  b5 {[%clk 0:02:52]} 12. Rhe1 {[%clk 0:02:55]}  Bb7 {[%clk 0:02:53]} 13. Qg3 {[%clk 0:02:43]}  g5 {[%clk 0:02:41]} 14. fxg5 {[%clk 0:02:41]}  Nh5 {[%clk 0:02:41]} 15. Qg4 {[%clk 0:02:32]}  hxg5 {[%clk 0:02:38]} 16. Bxg5 {[%clk 0:02:33]}  Ne5 {[%clk 0:02:34]} 17. Qh4 {[%clk 0:02:33]}  Ng6 {[%clk 0:02:26]} 18. Qg4 {[%clk 0:02:33]}  Ne5 {[%clk 0:02:19]} 19. Qh4 {[%clk 0:02:26]}  Ng6 {[%clk 0:02:14]} 20. Qg4 {[%clk 0:02:09]}  Ne5 {[%clk 0:02:14]} 1/2-1/2


[Site "https://www.chess.com"]